[Event "Early-Titled-Tuesday-Blitz-July-09-2024"]
[Site "Chess.com"]
[Date "2024.07.09"]
[Round "8"]
[White "Nekoo04"]
[Black "Gnechko_Ruslan"]
[Result "1/2-1/2"]
[WhiteElo "2385"]
[BlackElo "2509"]
[TimeControl "180+1"]
[EndTime "9:30:13 PDT"]
[Termination "Game drawn by repetition"]

1. Nf3 {[%clk 0:03:00]} 1... Nf6 {[%clk 0:02:56.8]} 2. g3 {[%clk 0:03:00.9]}
2... g6 {[%clk 0:02:57.7]} 3. Bg2 {[%clk 0:03:01]} 3... Bg7 {[%clk 0:02:58.6]}
4. O-O {[%clk 0:03:01.4]} 4... O-O {[%clk 0:02:59.5]} 5. d4 {[%clk 0:03:02]}
5... d5 {[%clk 0:02:59.6]} 6. c4 {[%clk 0:03:01.7]} 6... dxc4 {[%clk 0:02:59.3]}
7. Ne5 {[%clk 0:02:58.4]} 7... c5 {[%clk 0:02:59.2]} 8. dxc5 {[%clk 0:02:55.5]}
8... Qc7 {[%clk 0:02:58.4]} 9. Nxc4 {[%clk 0:02:44.9]} 9... Qxc5 {[%clk
0:02:58.5]} 10. b3 {[%clk 0:02:42.5]} 10... Nc6 {[%clk 0:02:42.2]} 11. Be3
{[%clk 0:02:40.8]} 11... Qh5 {[%clk 0:02:40]} 12. Nbd2 {[%clk 0:02:34.3]} 12...
Ng4 {[%clk 0:02:39.4]} 13. Nf3 {[%clk 0:02:32.4]} 13... Nxe3 {[%clk 0:02:37.7]}
14. Nxe3 {[%clk 0:02:31.5]} 14... Bxa1 {[%clk 0:02:37.9]} 15. Qxa1 {[%clk
0:02:30.6]} 15... Bg4 {[%clk 0:02:35.8]} 16. Rc1 {[%clk 0:02:27]} 16... Rac8
{[%clk 0:02:33.8]} 17. Nxg4 {[%clk 0:01:54.8]} 17... Qxg4 {[%clk 0:02:32.9]} 18.
Qb2 {[%clk 0:01:54.5]} 18... Rfd8 {[%clk 0:02:27.5]} 19. h3 {[%clk 0:01:54.1]}
19... Qd7 {[%clk 0:02:26.8]} 20. b4 {[%clk 0:01:46.7]} 20... a6 {[%clk
0:02:19.4]} 21. a4 {[%clk 0:01:45]} 21... Qd6 {[%clk 0:02:11.7]} 22. b5 {[%clk
0:01:41.5]} 22... axb5 {[%clk 0:02:09.5]} 23. axb5 {[%clk 0:01:42.4]} 23... Nd4
{[%clk 0:02:08]} 24. Nxd4 {[%clk 0:01:33.9]} 24... Rxc1+ {[%clk 0:02:07.1]} 25.
Qxc1 {[%clk 0:01:34.4]} 25... Qxd4 {[%clk 0:02:07.6]} 26. Bxb7 {[%clk
0:01:34.7]} 26... Qa4 {[%clk 0:02:00]} 27. Qc5 {[%clk 0:01:25.1]} 27... Qd1+
{[%clk 0:01:57.5]} 28. Kg2 {[%clk 0:01:22.7]} 28... Qxe2 {[%clk 0:01:58.1]} 29.
Bf3 {[%clk 0:01:22.5]} 29... Qe1 {[%clk 0:01:49.8]} 30. b6 {[%clk 0:01:20.2]}
30... e6 {[%clk 0:01:39.8]} 31. b7 {[%clk 0:01:17.3]} 31... Qb1 {[%clk 0:01:38]}
32. Qc8 {[%clk 0:01:12.4]} 32... Qb6 {[%clk 0:01:37.7]} 33. h4 {[%clk
0:00:58.7]} 33... h5 {[%clk 0:01:37.5]} 34. Qc3 {[%clk 0:00:50.6]} 34... Qa7
{[%clk 0:01:25.9]} 35. Qc7 {[%clk 0:00:45.2]} 35... Qb8 {[%clk 0:01:25.8]} 36.
Qe7 {[%clk 0:00:45.9]} 36... Kg7 {[%clk 0:01:22]} 37. Qb4 {[%clk 0:00:44.6]}
37... e5 {[%clk 0:01:21.4]} 38. Qe7 {[%clk 0:00:43.2]} 38... Kg8 {[%clk
0:01:13.1]} 39. Be2 {[%clk 0:00:37.9]} 39... Re8 {[%clk 0:01:10.6]} 40. Qd7
{[%clk 0:00:38.2]} 40... Qd8 {[%clk 0:01:06.9]} 41. Qb5 {[%clk 0:00:34.2]} 41...
Kf8 {[%clk 0:00:59]} 42. Bc4 {[%clk 0:00:33.4]} 42... Qd6 {[%clk 0:00:58.5]} 43.
Qb3 {[%clk 0:00:27.4]} 43... Qc7 {[%clk 0:00:49.9]} 44. Bxf7 {[%clk 0:00:24.5]}
44... Qxf7 {[%clk 0:00:30.2]} 45. b8=Q {[%clk 0:00:22.9]} 45... Rxb8 {[%clk
0:00:29.6]} 46. Qxb8+ {[%clk 0:00:23.8]} 46... Qe8 {[%clk 0:00:29.7]} 47. Qd6+
{[%clk 0:00:16.4]} 47... Kg7 {[%clk 0:00:26.6]} 48. Kh2 {[%clk 0:00:15.1]} 48...
Kh7 {[%clk 0:00:22.6]} 49. f3 {[%clk 0:00:14.9]} 49... e4 {[%clk 0:00:21.6]} 50.
fxe4 {[%clk 0:00:14]} 50... Qxe4 {[%clk 0:00:22.5]} 51. Qd2 {[%clk 0:00:14.4]}
51... Qf5 {[%clk 0:00:21.8]} 52. Qb2 {[%clk 0:00:13.8]} 52... Qd3 {[%clk
0:00:21.1]} 53. Qf2 {[%clk 0:00:13.1]} 53... Qe4 {[%clk 0:00:20.7]} 54. Qf7+
{[%clk 0:00:11.9]} 54... Kh8 {[%clk 0:00:21.2]} 55. Qf8+ {[%clk 0:00:11.9]}
55... Kh7 {[%clk 0:00:21.9]} 56. Qf7+ {[%clk 0:00:12.6]} 56... Kh8 {[%clk
0:00:22.6]} 57. Qf8+ {[%clk 0:00:13.5]} 57... Kh7 {[%clk 0:00:23.3]} 58. Qf7+
{[%clk 0:00:14.4]} 1/2-1/2

[Event "Early-Titled-Tuesday-Blitz-July-09-2024"]
[Site "Chess.com"]
[Date "2024.07.09"]
[Round "8"]
[White "DarkPassenger007"]
[Black "tarno17"]
[Result "0-1"]
[WhiteElo "2279"]
[BlackElo "2204"]
[TimeControl "180+1"]
[EndTime "9:30:14 PDT"]
[Termination "tarno17 won by checkmate"]

1. e4 {[%clk 0:03:00.9]} 1... c5 {[%clk 0:02:55.5]} 2. Nf3 {[%clk 0:03:00.3]}
2... e6 {[%clk 0:02:51.2]} 3. d4 {[%clk 0:02:59.8]} 3... cxd4 {[%clk 0:02:51.3]}
4. Nxd4 {[%clk 0:03:00.7]} 4... a6 {[%clk 0:02:51.9]} 5. c4 {[%clk 0:02:59.4]}
5... Nf6 {[%clk 0:02:50.7]} 6. Nc3 {[%clk 0:02:59.1]} 6... Bb4 {[%clk
0:02:51.5]} 7. Bd3 {[%clk 0:02:49.8]} 7... Nc6 {[%clk 0:02:48.9]} 8. Nxc6 {[%clk
0:02:41]} 8... dxc6 {[%clk 0:02:47.6]} 9. O-O {[%clk 0:02:39.4]} 9... e5 {[%clk
0:02:41.7]} 10. Bg5 {[%clk 0:02:14.2]} 10... h6 {[%clk 0:02:29.9]} 11. Bh4
{[%clk 0:02:13.7]} 11... O-O {[%clk 0:02:25]} 12. Bc2 {[%clk 0:02:08.4]} 12...
Be6 {[%clk 0:02:17.4]} 13. Qe2 {[%clk 0:02:03.7]} 13... Be7 {[%clk 0:00:58.7]}
14. Rfd1 {[%clk 0:01:57.1]} 14... Qa5 {[%clk 0:00:49.7]} 15. a3 {[%clk 0:01:38]}
15... Rad8 {[%clk 0:00:44.3]} 16. b4 {[%clk 0:01:35.3]} 16... Qc7 {[%clk
0:00:44.4]} 17. c5 {[%clk 0:01:29.6]} 17... a5 {[%clk 0:00:42.9]} 18. Na4 {[%clk
0:01:11]} 18... axb4 {[%clk 0:00:21.5]} 19. axb4 {[%clk 0:01:11.9]} 19... Nh7
{[%clk 0:00:18.7]} 20. Bxe7 {[%clk 0:01:07.4]} 20... Qxe7 {[%clk 0:00:19.6]} 21.
Nb6 {[%clk 0:01:06]} 21... Ng5 {[%clk 0:00:15.1]} 22. Nc4 {[%clk 0:00:50.4]}
22... Qf6 {[%clk 0:00:14.6]} 23. Nd6 {[%clk 0:00:48.7]} 23... Qg6 {[%clk
0:00:13.7]} 24. Kh1 {[%clk 0:00:38.1]} 24... Rd7 {[%clk 0:00:13.2]} 25. Rd2
{[%clk 0:00:33.2]} 25... Rfd8 {[%clk 0:00:13.3]} 26. Rad1 {[%clk 0:00:32.6]}
26... h5 {[%clk 0:00:13.9]} 27. h4 {[%clk 0:00:18.8]} 27... Nh7 {[%clk
0:00:12.2]} 28. Nf5 {[%clk 0:00:18.3]} 28... Nf6 {[%clk 0:00:08.5]} 29. Rd6
{[%clk 0:00:17.3]} 29... Ng4 {[%clk 0:00:06.1]} 30. f3 {[%clk 0:00:13.4]} 30...
Nh6 {[%clk 0:00:05.1]} 31. Ne7+ {[%clk 0:00:11.4]} 31... Rxe7 {[%clk 0:00:04.5]}
32. Rxd8+ {[%clk 0:00:12.3]} 32... Kh7 {[%clk 0:00:05.1]} 33. R8d6 {[%clk
0:00:08]} 33... Qf6 {[%clk 0:00:04.9]} 34. Bb3 {[%clk 0:00:07.5]} 34... Qxh4+
{[%clk 0:00:05]} 35. Kg1 {[%clk 0:00:06]} 35... Qg3 {[%clk 0:00:04.8]} 36. Bxe6
{[%clk 0:00:05.4]} 36... fxe6 {[%clk 0:00:05.7]} 37. Rd7 {[%clk 0:00:05.6]}
37... Rxd7 {[%clk 0:00:04.8]} 38. Rxd7 {[%clk 0:00:06.5]} 38... h4 {[%clk
0:00:04.9]} 39. Rxb7 {[%clk 0:00:06]} 39... h3 {[%clk 0:00:05.1]} 40. Kh1 {[%clk
0:00:03.3]} 40... h2 {[%clk 0:00:04.4]} 41. Rc7 {[%clk 0:00:02.9]} 41... Ng8
{[%clk 0:00:04.6]} 42. Rxc6 {[%clk 0:00:03.1]} 42... Nf6 {[%clk 0:00:05.4]} 43.
Rxe6 {[%clk 0:00:03.2]} 43... Nh5 {[%clk 0:00:05.5]} 44. c6 {[%clk 0:00:02.1]}
44... Nf4 {[%clk 0:00:05.8]} 45. Qd2 {[%clk 0:00:02]} 45... Nh3 {[%clk
0:00:03.6]} 46. gxh3 {[%clk 0:00:01.3]} 46... Qg1# {[%clk 0:00:03.6]} 0-1

[Event "Early-Titled-Tuesday-Blitz-July-09-2024"]
[Site "Chess.com"]
[Date "2024.07.09"]
[Round "8"]
[White "Fh2411"]
[Black "Individoom"]
[Result "0-1"]
[WhiteElo "2586"]
[BlackElo "2759"]
[TimeControl "180+1"]
[EndTime "9:30:17 PDT"]
[Termination "Individoom won on time"]

1. d4 {[%clk 0:03:00.9]} 1... Nf6 {[%clk 0:02:59.4]} 2. Nf3 {[%clk 0:03:00.7]}
2... g6 {[%clk 0:02:59]} 3. Bg5 {[%clk 0:02:57.7]} 3... Bg7 {[%clk 0:02:57.3]}
4. e3 {[%clk 0:02:57.8]} 4... h6 {[%clk 0:02:56.2]} 5. Bh4 {[%clk 0:02:57.1]}
5... O-O {[%clk 0:02:54.4]} 6. c4 {[%clk 0:02:57.7]} 6... d6 {[%clk 0:02:52.7]}
7. Nc3 {[%clk 0:02:58.2]} 7... Nbd7 {[%clk 0:02:49.8]} 8. Be2 {[%clk 0:02:58.5]}
8... e5 {[%clk 0:02:49.1]} 9. O-O {[%clk 0:02:59.1]} 9... Re8 {[%clk 0:02:44.5]}
10. Qc2 {[%clk 0:02:54.5]} 10... exd4 {[%clk 0:02:39]} 11. Nxd4 {[%clk 0:02:48]}
11... Nc5 {[%clk 0:02:21.2]} 12. Rad1 {[%clk 0:02:37.2]} 12... Bd7 {[%clk
0:02:14.5]} 13. Bf3 {[%clk 0:02:24.5]} 13... Qc8 {[%clk 0:02:11.7]} 14. h3
{[%clk 0:02:11.6]} 14... Nh7 {[%clk 0:01:52.2]} 15. Nd5 {[%clk 0:02:08.3]} 15...
Ng5 {[%clk 0:01:50.9]} 16. Qe2 {[%clk 0:01:40.9]} 16... c6 {[%clk 0:01:46.4]}
17. Nc3 {[%clk 0:01:37.2]} 17... a5 {[%clk 0:01:38.2]} 18. Bg3 {[%clk
0:01:34.4]} 18... Be5 {[%clk 0:01:37.4]} 19. Kh2 {[%clk 0:01:02]} 19... Bxg3+
{[%clk 0:01:29.1]} 20. Kxg3 {[%clk 0:00:34.9]} 20... d5 {[%clk 0:01:28.6]} 21.
Kh2 {[%clk 0:00:29.8]} 21... dxc4 {[%clk 0:01:22.6]} 22. Qxc4 {[%clk 0:00:25]}
22... Nce6 {[%clk 0:01:20.8]} 23. Bg4 {[%clk 0:00:20.5]} 23... Nxd4 {[%clk
0:01:15.3]} 24. Rxd4 {[%clk 0:00:14.8]} 24... Bxg4 {[%clk 0:01:05.7]} 25. hxg4
{[%clk 0:00:15.1]} 25... Qc7+ {[%clk 0:01:03.9]} 26. Kg1 {[%clk 0:00:15.1]}
26... Rad8 {[%clk 0:01:01.8]} 27. Rfd1 {[%clk 0:00:15.7]} 27... Qe7 {[%clk
0:01:00.9]} 28. Ne2 {[%clk 0:00:12.6]} 28... Ne6 {[%clk 0:01:00.4]} 29. Rxd8
{[%clk 0:00:12.4]} 29... Rxd8 {[%clk 0:01:00.8]} 30. Rxd8+ {[%clk 0:00:13]}
30... Qxd8 {[%clk 0:01:01]} 31. Qc2 {[%clk 0:00:13.2]} 31... Qd5 {[%clk
0:00:59.6]} 32. a3 {[%clk 0:00:11.5]} 32... Kh7 {[%clk 0:00:53.4]} 33. f3 {[%clk
0:00:11.1]} 33... Qe5 {[%clk 0:00:48]} 34. Kf2 {[%clk 0:00:10.6]} 34... h5
{[%clk 0:00:46.5]} 35. gxh5 {[%clk 0:00:10.4]} 35... Qxh5 {[%clk 0:00:46.7]} 36.
Qe4 {[%clk 0:00:09.8]} 36... Qb5 {[%clk 0:00:45.1]} 37. b4 {[%clk 0:00:09]}
37... axb4 {[%clk 0:00:43.6]} 38. axb4 {[%clk 0:00:09.9]} 38... Kg7 {[%clk
0:00:41.2]} 39. Nf4 {[%clk 0:00:10.1]} 39... Nxf4 {[%clk 0:00:40.3]} 40. Qxf4
{[%clk 0:00:10.4]} 40... Qd5 {[%clk 0:00:40.3]} 41. Kg3 {[%clk 0:00:09.5]} 41...
b6 {[%clk 0:00:36.6]} 42. Qc7 {[%clk 0:00:09.3]} 42... Qb5 {[%clk 0:00:34.5]}
43. Qd6 {[%clk 0:00:09]} 43... c5 {[%clk 0:00:32.2]} 44. Qe5+ {[%clk 0:00:09.2]}
44... Kh7 {[%clk 0:00:32.5]} 45. Qf6 {[%clk 0:00:07.5]} 45... Qc4 {[%clk
0:00:32.2]} 46. bxc5 {[%clk 0:00:07.3]} 46... bxc5 {[%clk 0:00:32.2]} 47. e4
{[%clk 0:00:08]} 47... Qe6 {[%clk 0:00:31.3]} 48. Qh4+ {[%clk 0:00:07.5]} 48...
Kg7 {[%clk 0:00:31]} 49. Qd8 {[%clk 0:00:08.1]} 49... Qc6 {[%clk 0:00:30.5]} 50.
e5 {[%clk 0:00:06.6]} 50... c4 {[%clk 0:00:30.3]} 51. Qd2 {[%clk 0:00:06.7]}
51... c3 {[%clk 0:00:30.2]} 52. Qc2 {[%clk 0:00:07.4]} 52... Qc5 {[%clk
0:00:30.3]} 53. Kf4 {[%clk 0:00:05.6]} 53... Qd4+ {[%clk 0:00:30.3]} 54. Kg3
{[%clk 0:00:03.3]} 54... Qd2 {[%clk 0:00:30.4]} 55. Qe4 {[%clk 0:00:01.7]} 55...
c2 {[%clk 0:00:30.3]} 56. Qc6 {[%clk 0:00:02.2]} 56... Qg5+ {[%clk 0:00:29.4]}
57. Kf2 {[%clk 0:00:02.1]} 57... c1=Q {[%clk 0:00:29.5]} 0-1

[Event "Early-Titled-Tuesday-Blitz-July-09-2024"]
[Site "Chess.com"]
[Date "2024.07.09"]
[Round "8"]
[White "Ykow"]
[Black "Kirill_Klukin"]
[Result "0-1"]
[WhiteElo "2741"]
[BlackElo "2926"]
[TimeControl "180+1"]
[EndTime "9:30:19 PDT"]
[Termination "Kirill_Klukin won by resignation"]

1. e4 {[%clk 0:02:18.8]} 1... c5 {[%clk 0:02:58.7]} 2. Nf3 {[%clk 0:02:17.9]}
2... g6 {[%clk 0:02:58.9]} 3. c3 {[%clk 0:02:17.4]} 3... d5 {[%clk 0:02:58.1]}
4. e5 {[%clk 0:02:17.4]} 4... Bg7 {[%clk 0:02:54.6]} 5. d4 {[%clk 0:02:17.3]}
5... cxd4 {[%clk 0:02:55.1]} 6. cxd4 {[%clk 0:02:17.7]} 6... a6 {[%clk
0:02:55.3]} 7. h3 {[%clk 0:02:16.9]} 7... Nc6 {[%clk 0:02:55.7]} 8. Nc3 {[%clk
0:02:17.3]} 8... f6 {[%clk 0:02:56]} 9. exf6 {[%clk 0:02:17]} 9... Nxf6 {[%clk
0:02:56.9]} 10. Be3 {[%clk 0:02:16.9]} 10... O-O {[%clk 0:02:57]} 11. Be2 {[%clk
0:02:17.2]} 11... Nh5 {[%clk 0:02:57.2]} 12. Qd2 {[%clk 0:02:16.8]} 12... Qd6
{[%clk 0:02:56.7]} 13. O-O {[%clk 0:02:11.4]} 13... e6 {[%clk 0:02:52.5]} 14.
Rfe1 {[%clk 0:01:37.3]} 14... Nf4 {[%clk 0:02:51]} 15. Rad1 {[%clk 0:01:36.5]}
15... Bd7 {[%clk 0:02:49.8]} 16. b3 {[%clk 0:01:20.9]} 16... b5 {[%clk 0:02:33]}
17. h4 {[%clk 0:01:10.5]} 17... Rac8 {[%clk 0:02:28.9]} 18. g3 {[%clk
0:00:51.2]} 18... Nxe2+ {[%clk 0:02:25.5]} 19. Qxe2 {[%clk 0:00:52.1]} 19... Rf5
{[%clk 0:01:43.4]} 20. Nb1 {[%clk 0:00:25.8]} 20... Rcf8 {[%clk 0:01:37.3]} 21.
Nbd2 {[%clk 0:00:25.3]} 21... Nb4 {[%clk 0:01:33.6]} 22. Ne5 {[%clk 0:00:20.7]}
22... Nc2 {[%clk 0:01:19.7]} 23. Rf1 {[%clk 0:00:19.9]} 23... Nxe3 {[%clk
0:01:05.2]} 24. Qxe3 {[%clk 0:00:18.8]} 24... Bxe5 {[%clk 0:01:05.3]} 25. dxe5
{[%clk 0:00:19.1]} 25... Rxe5 {[%clk 0:01:06]} 26. Qd4 {[%clk 0:00:19.2]} 26...
Ref5 {[%clk 0:01:06]} 27. f4 {[%clk 0:00:13.5]} 27... e5 {[%clk 0:00:39.8]} 28.
fxe5 {[%clk 0:00:13.4]} 28... Qxe5 {[%clk 0:00:40.6]} 29. Qxe5 {[%clk
0:00:13.5]} 29... Rxe5 {[%clk 0:00:41.5]} 30. Rxf8+ {[%clk 0:00:13.9]} 30...
Kxf8 {[%clk 0:00:42.4]} 31. Nf3 {[%clk 0:00:14.6]} 31... Bg4 {[%clk 0:00:25.1]}
32. Nxe5 {[%clk 0:00:12.3]} 32... Bxd1 {[%clk 0:00:25.7]} 33. Kf2 {[%clk
0:00:12.7]} 33... Ke7 {[%clk 0:00:19.4]} 34. Ke3 {[%clk 0:00:12.9]} 34... Ke6
{[%clk 0:00:17.9]} 35. Kd4 {[%clk 0:00:13.8]} 35... Be2 {[%clk 0:00:14]} 36. b4
{[%clk 0:00:13.3]} 36... Bc4 {[%clk 0:00:12.6]} 37. a3 {[%clk 0:00:13.4]} 37...
Kf5 {[%clk 0:00:13.2]} 38. g4+ {[%clk 0:00:13.5]} 38... Kf4 {[%clk 0:00:13.5]}
39. g5 {[%clk 0:00:14.1]} 39... Kg3 {[%clk 0:00:13.9]} 40. Nd7 {[%clk
0:00:07.2]} 40... Kxh4 {[%clk 0:00:13.7]} 41. Nc5 {[%clk 0:00:08.1]} 41... Kxg5
{[%clk 0:00:14.1]} 42. Nxa6 {[%clk 0:00:09]} 42... h5 {[%clk 0:00:14.8]} 43. Nc5
{[%clk 0:00:09.7]} 43... h4 {[%clk 0:00:15.3]} 44. Ke3 {[%clk 0:00:10.5]} 44...
Kg4 {[%clk 0:00:14.6]} 45. Ne6 {[%clk 0:00:09.4]} 45... h3 {[%clk 0:00:13.1]}
46. Kf2 {[%clk 0:00:08.4]} 46... Kf5 {[%clk 0:00:10.2]} 47. Nd4+ {[%clk
0:00:07]} 47... Ke4 {[%clk 0:00:10.6]} 48. Nf3 {[%clk 0:00:07]} 48... d4 {[%clk
0:00:10.5]} 49. Ng5+ {[%clk 0:00:07.2]} 49... Kf4 {[%clk 0:00:10.4]} 50. Nxh3+
{[%clk 0:00:08.1]} 50... Ke4 {[%clk 0:00:07.4]} 51. Ng5+ {[%clk 0:00:08]} 51...
Kd3 {[%clk 0:00:08]} 52. Nf3 {[%clk 0:00:08]} 52... Kc3 {[%clk 0:00:08.3]} 53.
Ne5 {[%clk 0:00:07.9]} 53... g5 {[%clk 0:00:08.6]} 54. Nf3 {[%clk 0:00:08]}
54... d3 {[%clk 0:00:09]} 55. Ne5 {[%clk 0:00:08.9]} 55... d2 {[%clk 0:00:09.1]}
0-1

[Event "Early-Titled-Tuesday-Blitz-July-09-2024"]
[Site "Chess.com"]
[Date "2024.07.09"]
[Round "8"]
[White "Igor_Janik"]
[Black "jaskol95"]
[Result "1-0"]
[WhiteElo "2894"]
[BlackElo "2667"]
[TimeControl "180+1"]
[EndTime "9:30:20 PDT"]
[Termination "Igor_Janik won by checkmate"]

1. e4 {[%clk 0:03:00.9]} 1... c5 {[%clk 0:02:58]} 2. Nf3 {[%clk 0:03:01.4]} 2...
e6 {[%clk 0:02:58.4]} 3. g3 {[%clk 0:03:01]} 3... Nc6 {[%clk 0:02:56.5]} 4. Bg2
{[%clk 0:03:00.7]} 4... Nf6 {[%clk 0:02:50.3]} 5. Qe2 {[%clk 0:03:00.5]} 5... e5
{[%clk 0:02:50.6]} 6. d3 {[%clk 0:02:58.8]} 6... Be7 {[%clk 0:02:51.1]} 7. Nc3
{[%clk 0:02:56]} 7... O-O {[%clk 0:02:51.3]} 8. O-O {[%clk 0:02:56.2]} 8... Re8
{[%clk 0:02:48.2]} 9. Nd2 {[%clk 0:02:56.2]} 9... Nd4 {[%clk 0:02:42.3]} 10. Qd1
{[%clk 0:02:55.9]} 10... d6 {[%clk 0:02:42.9]} 11. Nc4 {[%clk 0:02:55.9]} 11...
b5 {[%clk 0:02:39.1]} 12. Ne3 {[%clk 0:02:55.6]} 12... Bb7 {[%clk 0:02:35.5]}
13. Ncd5 {[%clk 0:02:54.6]} 13... Nxd5 {[%clk 0:02:33.2]} 14. exd5 {[%clk
0:02:53.1]} 14... b4 {[%clk 0:02:29.5]} 15. a4 {[%clk 0:02:44.6]} 15... bxa3
{[%clk 0:02:18.9]} 16. Rxa3 {[%clk 0:02:42.4]} 16... f5 {[%clk 0:02:01.9]} 17.
c3 {[%clk 0:02:42.4]} 17... Nb5 {[%clk 0:02:02.1]} 18. Ra1 {[%clk 0:02:23.4]}
18... f4 {[%clk 0:01:55.3]} 19. Nc4 {[%clk 0:01:54.6]} 19... Nc7 {[%clk
0:01:42.6]} 20. Na5 {[%clk 0:01:53.1]} 20... Bc8 {[%clk 0:01:28.9]} 21. Nc6
{[%clk 0:01:44]} 21... Qd7 {[%clk 0:01:29.2]} 22. Be4 {[%clk 0:01:43.7]} 22...
Bb7 {[%clk 0:01:17.1]} 23. Nxe7+ {[%clk 0:01:34.2]} 23... Qxe7 {[%clk
0:01:13.4]} 24. c4 {[%clk 0:01:34.8]} 24... Qf6 {[%clk 0:01:08]} 25. Qh5 {[%clk
0:01:28.4]} 25... g6 {[%clk 0:01:07]} 26. Qh6 {[%clk 0:01:28.8]} 26... Rf8
{[%clk 0:01:04.7]} 27. Bd2 {[%clk 0:01:25.8]} 27... Ne8 {[%clk 0:00:59]} 28.
gxf4 {[%clk 0:01:20]} 28... Ng7 {[%clk 0:00:46.8]} 29. fxe5 {[%clk 0:01:16]}
29... dxe5 {[%clk 0:00:47.1]} 30. Qg5 {[%clk 0:01:13.4]} 30... Qd6 {[%clk
0:00:39.7]} 31. Bc3 {[%clk 0:01:07.1]} 31... Nf5 {[%clk 0:00:40.2]} 32. f3
{[%clk 0:00:57.7]} 32... a6 {[%clk 0:00:35]} 33. Rf2 {[%clk 0:00:56.4]} 33...
Rf7 {[%clk 0:00:34.5]} 34. Raf1 {[%clk 0:00:47.2]} 34... Raf8 {[%clk 0:00:34.8]}
35. f4 {[%clk 0:00:40.2]} 35... exf4 {[%clk 0:00:16.2]} 36. Qxf4 {[%clk
0:00:37.3]} 36... Qe7 {[%clk 0:00:13.7]} 37. Qe5 {[%clk 0:00:32.6]} 37... Qg5+
{[%clk 0:00:14.1]} 38. Rg2 {[%clk 0:00:21.4]} 38... Qe3+ {[%clk 0:00:11]} 39.
Rgf2 {[%clk 0:00:17.1]} 39... Ng7 {[%clk 0:00:10.7]} 40. Qg3 {[%clk 0:00:14.7]}
40... Rxf2 {[%clk 0:00:05.5]} 41. Rxf2 {[%clk 0:00:14.2]} 41... Qc1+ {[%clk
0:00:04.9]} 42. Kg2 {[%clk 0:00:14.7]} 42... Nh5 {[%clk 0:00:04.3]} 43. Rxf8+
{[%clk 0:00:14.2]} 43... Kxf8 {[%clk 0:00:04.7]} 44. Qb8+ {[%clk 0:00:14.8]}
44... Ke7 {[%clk 0:00:03.5]} 45. Qxb7+ {[%clk 0:00:15]} 45... Kf8 {[%clk
0:00:03.8]} 46. Qc8+ {[%clk 0:00:15]} 46... Ke7 {[%clk 0:00:04.2]} 47. Qc7+
{[%clk 0:00:15.5]} 47... Ke8 {[%clk 0:00:03.9]} 48. Qe5+ {[%clk 0:00:14.4]}
48... Kd8 {[%clk 0:00:03.8]} 49. Qd6+ {[%clk 0:00:12.5]} 49... Ke8 {[%clk
0:00:03.9]} 50. Bxg6+ {[%clk 0:00:12.3]} 50... hxg6 {[%clk 0:00:03.2]} 51. Qxg6+
{[%clk 0:00:12.9]} 51... Kd7 {[%clk 0:00:03.5]} 52. Qxh5 {[%clk 0:00:12.6]}
52... Qc2+ {[%clk 0:00:03.8]} 53. Kg3 {[%clk 0:00:13]} 53... Qxd3+ {[%clk
0:00:03.6]} 54. Qf3 {[%clk 0:00:13.6]} 54... Qc2 {[%clk 0:00:02]} 55. Qf7+
{[%clk 0:00:12.3]} 55... Kd6 {[%clk 0:00:02]} 56. Qe6+ {[%clk 0:00:12.7]} 56...
Kc7 {[%clk 0:00:02.6]} 57. Be5+ {[%clk 0:00:13.1]} 57... Kb7 {[%clk 0:00:02.7]}
58. Qc6+ {[%clk 0:00:13.3]} 58... Ka7 {[%clk 0:00:03.3]} 59. Qc7+ {[%clk
0:00:14]} 59... Ka8 {[%clk 0:00:04.2]} 60. Qb8# {[%clk 0:00:14.9]} 1-0

[Event "Early-Titled-Tuesday-Blitz-July-09-2024"]
[Site "Chess.com"]
[Date "2024.07.09"]
[Round "8"]
[White "Makswolf200817"]
[Black "bazar-wokzal"]
[Result "1-0"]
[WhiteElo "2773"]
[BlackElo "2609"]
[TimeControl "180+1"]
[EndTime "9:30:21 PDT"]
[Termination "Makswolf200817 won on time"]

1. d4 {[%clk 0:02:59.7]} 1... Nf6 {[%clk 0:02:59.4]} 2. c4 {[%clk 0:03:00.2]}
2... Nc6 {[%clk 0:02:59.3]} 3. Nf3 {[%clk 0:02:55.8]} 3... e6 {[%clk 0:02:59.3]}
4. Nc3 {[%clk 0:02:52.9]} 4... Bb4 {[%clk 0:02:58.7]} 5. Qc2 {[%clk 0:02:47]}
5... d6 {[%clk 0:02:58.5]} 6. a3 {[%clk 0:02:39.7]} 6... Bxc3+ {[%clk
0:02:58.5]} 7. Qxc3 {[%clk 0:02:40.6]} 7... O-O {[%clk 0:02:58.2]} 8. Bg5 {[%clk
0:02:39.2]} 8... h6 {[%clk 0:02:57.6]} 9. Bh4 {[%clk 0:02:38.7]} 9... g5 {[%clk
0:02:52.6]} 10. Bg3 {[%clk 0:02:36.2]} 10... Ne4 {[%clk 0:02:52.9]} 11. Qd3
{[%clk 0:02:35]} 11... d5 {[%clk 0:02:53]} 12. e3 {[%clk 0:02:31.4]} 12... h5
{[%clk 0:02:52.5]} 13. h3 {[%clk 0:02:07.5]} 13... Nxg3 {[%clk 0:02:51.8]} 14.
fxg3 {[%clk 0:02:07.9]} 14... Qd6 {[%clk 0:02:52.1]} 15. Kf2 {[%clk 0:02:06.7]}
15... dxc4 {[%clk 0:02:50.7]} 16. Qxc4 {[%clk 0:02:05.8]} 16... g4 {[%clk
0:02:20.9]} 17. hxg4 {[%clk 0:02:01.6]} 17... hxg4 {[%clk 0:02:20.9]} 18. Nd2
{[%clk 0:00:46.9]} 18... e5 {[%clk 0:02:16.5]} 19. Ne4 {[%clk 0:00:38.8]} 19...
Qg6 {[%clk 0:02:13]} 20. d5 {[%clk 0:00:39.3]} 20... Na5 {[%clk 0:01:40.3]} 21.
Qc2 {[%clk 0:00:38.9]} 21... Bf5 {[%clk 0:01:35.5]} 22. Bd3 {[%clk 0:00:38.9]}
22... Rad8 {[%clk 0:01:23]} 23. Nf6+ {[%clk 0:00:28.8]} 23... Qxf6 {[%clk
0:01:22.5]} 24. Bxf5 {[%clk 0:00:29.6]} 24... Rxd5 {[%clk 0:01:18.3]} 25. Rh4
{[%clk 0:00:24.1]} 25... Rfd8 {[%clk 0:01:14.9]} 26. Kg1 {[%clk 0:00:20.5]}
26... Kf8 {[%clk 0:01:02.3]} 27. Rf1 {[%clk 0:00:18.4]} 27... Qc6 {[%clk
0:00:55.6]} 28. Qe4 {[%clk 0:00:06.2]} 28... Nc4 {[%clk 0:00:45.6]} 29. Bg6
{[%clk 0:00:03.3]} 29... R8d7 {[%clk 0:00:41.3]} 30. Rh8+ {[%clk 0:00:02]} 30...
Ke7 {[%clk 0:00:39.6]} 31. Rxf7+ {[%clk 0:00:01.8]} 31... Kd6 {[%clk 0:00:40]}
32. Rf6+ {[%clk 0:00:01.9]} 32... Kc5 {[%clk 0:00:39.6]} 33. Rxc6+ {[%clk
0:00:02.7]} 33... bxc6 {[%clk 0:00:39.5]} 34. Qxg4 {[%clk 0:00:01.4]} 34... Rd1+
{[%clk 0:00:35.3]} 35. Kh2 {[%clk 0:00:02.1]} 35... Nxe3 {[%clk 0:00:35.7]} 36.
Qe2 {[%clk 0:00:02.8]} 36... Nc4 {[%clk 0:00:19.3]} 37. Rh4 {[%clk 0:00:02.4]}
37... R1d4 {[%clk 0:00:16.4]} 38. Rxd4 {[%clk 0:00:02.6]} 38... exd4 {[%clk
0:00:16.5]} 39. Bd3 {[%clk 0:00:03.1]} 39... Nb6 {[%clk 0:00:12.8]} 40. Qe5+
{[%clk 0:00:03.6]} 40... Nd5 {[%clk 0:00:10.1]} 41. b4+ {[%clk 0:00:04]} 41...
Kb6 {[%clk 0:00:10.2]} 42. Qxd4+ {[%clk 0:00:04.8]} 42... Kb7 {[%clk 0:00:10.8]}
43. Bf5 {[%clk 0:00:04.9]} 43... Rd6 {[%clk 0:00:10.6]} 44. g4 {[%clk
0:00:04.4]} 44... Ne7 {[%clk 0:00:06.3]} 45. Qe5 {[%clk 0:00:04.2]} 45... Rh6+
{[%clk 0:00:04.6]} 46. Kg3 {[%clk 0:00:04.3]} 46... Nd5 {[%clk 0:00:04.9]} 47.
Qe8 {[%clk 0:00:02.9]} 1-0